[Event "24th European Women Club Cup 2019"]
[Site "Ulcinj"]
[Date "2019.11.10"]
[Round "1.4"]
[White "Osmak, Iulija"]
[Black "Styazhkina, Anna"]
[Result "1-0"]
[ECO "D10"]
[WhiteElo "2401"]
[BlackElo "2280"]
[Annotator "NA RC"]
[PlyCount "77"]
[EventDate "2019.11.10"]
[EventType "team-tourn"]
[EventCountry "MNE"]
[SourceTitle "playchess.com"]
[Source "ChessBase"]
[SourceQuality "1"]
[WhiteTeam "Kyiv"]
[BlackTeam "SPB"]
[TimeControl "40/5400+30:1800+30"]

1. d4 {[%emt 0:00:00]} d5 {[%emt 0:00:00]} 2. c4 {[%emt 0:00:00]} c6 {[%emt 0:00:06]} 3. cxd5 {[%emt 0:00:00]} cxd5 {[%emt 0:00:11]} 4. Nc3 {[%emt 0:00:00]} Nf6 {[%emt 0:00:14]} 5. Bf4 {[%emt 0:00:00]} Nc6 {[%emt 0:00:24]} 6. e3 {[%emt 0:00:00]} a6 {[%emt 0:03:15]} 7. Be2 {[%emt 0:00:06]} Bf5 {[%emt 0:00:09]} 8. g4 {[%emt 0:00:12]} Bd7 {[%emt 0:00:32]} 9. g5 {[%emt 0:02:22]} Ne4 {[%emt 0:00:32]} 10. Nxd5 {[%emt 0:08:56]} Qa5+ {[%emt 0:01:06]} 11. Nc3 {[%emt 0:00:06]} Nxc3 {[%emt 0:00:48]} 12. bxc3 {[%emt 0:00:06]} Qxc3+ {[%emt 0:00:22]} 13. Kf1 {[%emt 0:00:03]} e5 {[%emt 0:18:19]} 14. dxe5 {[%emt 0:04:08]} Rd8 {[%emt 0:02:15]} 15. Qe1 {[%emt 0:08:01]} Qa3 {[%emt 0:26:25]} 16. Kg2 {[%emt 0:04:46]} Bb4 {[%emt 0:00:56]} 17. Qc1 {[%emt 0:00:20]} Qa5 {[%emt 0:00:17]} 18. Nf3 {[%emt 0:00:36]} Bf5 {[%emt 0:00:29]} 19. Qc4 {[%emt 0:04:34]} Be6 {[%emt 0:03:55]} 20. Qc2 {[%emt 0:01:02]} Rc8 {[%emt 0:04:43]} 21. a3 {[%emt 0:08:09]} Bc3 {[%emt 0:03:00]} 22. Rac1 {[%emt 0:00:46]} Ne7 {[%emt 0:00:48]} 23. Qb1 {[%emt 0:01:42]} b5 {[%emt 0:05:47]} 24. Nd4 {[%emt 0:11:34]} Bd5+ {[%emt 0:04:01]} 25. Bf3 {[%emt 0:04:58]} O-O {[%emt 0:09:29]} 26. Bxd5 {[%emt 0:07:30]} Nxd5 {[%emt 0:00:06]} 27. Nf5 {[%emt 0:01:03]} Qxa3 {[%emt 0:04:33]} 28. Nd6 {[%emt 0:00:27]} Rc5 {[%emt 0:01:01]} 29. Rhd1 {[%emt 0:08:31]} b4 {[%emt 0:02:20]} 30. Qe4 {[%emt 0:04:53]} Nc7 {[%emt 0:04:44]} 31. Nxf7 {[%emt 0:07:34]} Qa2 {[%emt 0:03:24]} 32. g6 {[%emt 0:05:21]} hxg6 {[%emt 0:00:14]} 33. Ng5 {[%emt 0:01:03]} Ne6 {[%emt 0:00:36]} 34. Qxg6 {[%emt 0:00:57]} Nxg5 {[%emt 0:00:37]} 35. Qxg5 {[%emt 0:00:06]} Rd5 {[%emt 0:01:11]} 36. Qg4 {[%emt 0:01:48]} Rfd8 {[%emt 0:00:33]} 37. Qe6+ {[%emt 0:01:58]} Kh8 {[%emt 0:00:19]} 38. e4 {[%emt 0:00:06]} b3 {[%emt 0:00:47]} 39. Rxc3 {[%emt 0:00:56]} 1-0

[Event "24th European Women Club Cup 2019"]
[Site "Ulcinj"]
[Date "2019.11.10"]
[Round "1.6"]
[White "Velikic, Adela"]
[Black "Socko, Monika"]
[Result "0-1"]
[ECO "E20"]
[WhiteElo "2275"]
[BlackElo "2417"]
[Annotator "NA"]
[PlyCount "50"]
[EventDate "2019.11.10"]
[EventType "team-tourn"]
[EventCountry "MNE"]
[SourceTitle "playchess.com"]
[Source "ChessBase"]
[SourceQuality "1"]
[WhiteTeam "Jelica PEP"]
[BlackTeam "Cercle d`Echecs"]
[TimeControl "40/5400+30:1800+30"]

1. d4 {[%emt 0:00:00]} Nf6 {[%emt 0:00:00]} 2. c4 {[%emt 0:00:00]} e6 {[%emt 0:00:00]} 3. Nc3 {[%emt 0:00:00]} Bb4 {[%emt 0:00:00]} 4. g3 {[%emt 0:00:00]} O-O {[%emt 0:00:44]} 5. Bg2 {[%emt 0:00:00]} d6 {[%emt 0:00:04]} 6. Nf3 {[%emt 0:02:10]} Bxc3+ {[%emt 0:00:07]} 7. bxc3 {[%emt 0:00:08]} Nc6 {[%emt 0:00:01]} 8. O-O {[%emt 0:08:58]} e5 {[%emt 0:00:39]} 9. Rb1 {[%emt 0:10:46]} Qe7 {[%emt 0:03:23]} 10. Qc2 {[%emt 0:13:39]} Re8 {[%emt 0:01:33]} 11. Re1 {[%emt 0:05:24]} e4 {[%emt 0:12:57]} 12. Ng5 {[%emt 0:05:51]} h6 {[%emt 0:02:21]} 13. Nh3 {[%emt 0:00:15]} Na5 {[%emt 0:02:58]} 14. c5 {[%emt 0:21:49]} dxc5 {[%emt 0:04:21]} 15. e3 {[%emt 0:01:44]} b6 {[%emt 0:07:15]} 16. Nf4 {[%emt 0:01:12]} g5 {[%emt 0:05:11]} 17. Ne2 {[%emt 0:00:42]} Ba6 {[%emt 0:01:27]} 18. Ra1 {[%emt 0:04:59]} Bd3 {[%emt 0:02:21]} 19. Qd1 {[%emt 0:00:35]} Rad8 {[%emt 0:01:30]} 20. Bd2 {[%emt 0:02:54]} Qe6 {[%emt 0:04:11]} 21. Qa4 {[%emt 0:10:35]} Nc4 {[%emt 0:04:13]} 22. Bc1 {[%emt 0:00:43]} Nd5 {[%emt 0:06:48]} 23. Bf1 {[%emt 0:00:26]} a5 {[%emt 0:07:20]} 24. dxc5 {[%emt 0:05:12]} bxc5 {[%emt 0:00:34]} 25. Ba3 {[%emt 0:03:02]} Ndb6 {[%emt 0:00:59]} 0-1

[Event "24th European Women Club Cup 2019"]
[Site "Ulcinj"]
[Date "2019.11.10"]
[Round "1.8"]
[White "Blagojevic, Tijana"]
[Black "Skripchenko, Almira"]
[Result "0-1"]
[ECO "B31"]
[WhiteElo "2169"]
[BlackElo "2403"]
[Annotator "NA RC"]
[PlyCount "86"]
[EventDate "2019.11.10"]
[EventType "team-tourn"]
[EventCountry "MNE"]
[SourceTitle "playchess.com"]
[Source "ChessBase"]
[SourceQuality "1"]
[WhiteTeam "Jelica PEP"]
[BlackTeam "Cercle d`Echecs"]
[TimeControl "40/5400+30:1800+30"]

1. e4 {[%emt 0:00:00]} c5 {[%emt 0:00:00]} 2. Nf3 {[%emt 0:00:00]} Nc6 {[%emt 0:00:00]} 3. Bb5 {[%emt 0:00:00]} g6 {[%emt 0:00:00]} 4. O-O {[%emt 0:00:00]} Bg7 {[%emt 0:00:00]} 5. Re1 {[%emt 0:00:06]} e5 {[%emt 0:00:52]} 6. Bxc6 {[%emt 0:00:22]} dxc6 {[%emt 0:00:05]} 7. d3 {[%emt 0:00:21]} Qe7 {[%emt 0:00:36]} 8. Nbd2 {[%emt 0:00:40]} Nh6 {[%emt 0:01:51]} 9. a3 {[%emt 0:04:56]} O-O {[%emt 0:05:27]} 10. b4 {[%emt 0:01:24]} Be6 {[%emt 0:06:42]} 11. Bb2 {[%emt 0:02:04]} f6 {[%emt 0:01:17]} 12. Bc3 {[%emt 0:02:18]} Rfd8 {[%emt 0:01:04]} 13. Qb1 {[%emt 0:00:48]} Nf7 {[%emt 0:05:10]} 14. Qb2 {[%emt 0:06:57]} cxb4 {[%emt 0:11:22]} 15. axb4 {[%emt 0:12:37]} Nd6 {[%emt 0:00:19]} 16. d4 {[%emt 0:08:10]} exd4 {[%emt 0:05:36]} 17. Bxd4 {[%emt 0:02:43]} Nb5 {[%emt 0:03:38]} 18. Bc5 {[%emt 0:05:37]} Qf7 {[%emt 0:03:34]} 19. Rad1 {[%emt 0:15:04]} b6 {[%emt 0:14:19]} 20. Bd4 {[%emt 0:03:16]} Rd7 {[%emt 0:05:48]} 21. c3 {[%emt 0:05:09]} Rad8 {[%emt 0:00:26]} 22. h3 {[%emt 0:00:13]} h6 {[%emt 0:05:51]} 23. Re3 {[%emt 0:03:42]} Kh7 {[%emt 0:07:01]} 24. Rde1 {[%emt 0:00:52]} Rb7 {[%emt 0:02:54]} 25. Qa1 {[%emt 0:06:54]} a5 {[%emt 0:01:30]} 26. e5 {[%emt 0:02:08]} f5 {[%emt 0:00:50]} 27. c4 {[%emt 0:02:09]} Nxd4 {[%emt 0:01:11]} 28. Nxd4 {[%emt 0:00:08]} axb4 {[%emt 0:02:25]} 29. N2f3 {[%emt 0:01:47]} c5 {[%emt 0:01:01]} 30. Nxe6 {[%emt 0:00:37]} Qxe6 {[%emt 0:00:04]} 31. Qa6 {[%emt 0:01:03]} Rbd7 {[%emt 0:03:01]} 32. Ra1 {[%emt 0:01:53]} Rd1+ {[%emt 0:01:11]} 33. Re1 {[%emt 0:00:03]} Rxe1+ {[%emt 0:00:43]} 34. Rxe1 {[%emt 0:00:09]} g5 {[%emt 0:00:22]} 35. Qb7 {[%emt 0:00:47]} Rd7 {[%emt 0:01:20]} 36. Qb8 {[%emt 0:01:06]} b3 {[%emt 0:01:15]} 37. Qc8 {[%emt 0:05:15]} b2 {[%emt 0:00:38]} 38. Qa6 {[%emt 0:00:06]} g4 {[%emt 0:00:15]} 39. hxg4 {[%emt 0:00:31]} fxg4 {[%emt 0:00:04]} 40. Nh2 {[%emt 0:00:00]} Qxe5 {[%emt 0:00:00]} 41. Rf1 {[%emt 0:08:02]} Qe4 {[%emt 0:05:16]} 42. Qb5 {[%emt 0:00:32]} Ra7 {[%emt 0:00:18]} 43. f3 {[%emt 0:03:14]} Qd4+ {[%emt 0:02:31]} 0-1

[Event "24th European Women Club Cup 2019"]
[Site "Ulcinj"]
[Date "2019.11.10"]
[Round "1.13"]
[White "Pogonina, Natalija"]
[Black "Salimova, Nurgyul"]
[Result "1-0"]
[ECO "E06"]
[WhiteElo "2479"]
[BlackElo "2370"]
[Annotator "ChessBase"]
[PlyCount "59"]
[EventDate "2019.11.10"]
[EventType "team-tourn"]
[EventCountry "MNE"]
[SourceTitle "playchess.com"]
[Source "ChessBase"]
[SourceQuality "1"]
[WhiteTeam "Ugra"]
[BlackTeam "Asseco SEE"]
[TimeControl "40/5400+30:1800+30"]

1. d4 {[%emt 0:00:00]} Nf6 {[%emt 0:00:00]} 2. Nf3 {[%emt 0:00:00]} e6 {[%emt 0:00:00]} 3. c4 {[%emt 0:00:17]} d5 {[%emt 0:00:06]} 4. g3 {[%emt 0:00:14]} Be7 {[%emt 0:00:17]} 5. Bg2 {[%emt 0:00:14]} O-O {[%emt 0:00:15]} 6. O-O {[%emt 0:00:05]} c6 {[%emt 0:00:18]} 7. Qc2 {[%emt 0:06:10]} b6 {[%emt 0:00:51]} 8. Nbd2 {[%emt 0:02:49]} c5 {[%emt 0:01:19]} 9. cxd5 {[%emt 0:04:19]} exd5 {[%emt 0:00:50]} 10. e4 {[%emt 0:06:41]} Nc6 {[%emt 0:06:35]} 11. e5 {[%emt 0:04:38]} Nd7 {[%emt 0:08:45]} 12. a3 {[%emt 0:01:40]} Bb7 {[%emt 0:11:41]} 13. Re1 {[%emt 0:06:00]} Rc8 {[%emt 0:07:44]} 14. Qd1 {[%emt 0:09:42]} Qc7 {[%emt 0:13:12]} 15. Nf1 {[%emt 0:02:46]} cxd4 {[%emt 0:03:01]} 16. Bf4 {[%emt 0:13:17]} Nc5 {[%emt 0:11:32]} 17. e6 {[%emt 0:08:00]} Bd6 {[%emt 0:00:37]} 18. exf7+ {[%emt 0:02:14]} Rxf7 {[%emt 0:01:59]} 19. Ng5 {[%emt 0:00:36]} Bxf4 {[%emt 0:06:30]} 20. Nxf7 {[%emt 0:02:28]} Qxf7 {[%emt 0:00:28]} 21. gxf4 {[%emt 0:00:05]} Ne4 {[%emt 0:02:31]} 22. Ng3 {[%emt 0:01:06]} Qxf4 {[%emt 0:02:55]} 23. Nxe4 {[%emt 0:04:56]} dxe4 {[%emt 0:00:06]} 24. Qb3+ {[%emt 0:04:40]} Kh8 {[%emt 0:00:25]} 25. Rxe4 {[%emt 0:00:13]} Qf8 {[%emt 0:03:10]} 26. Qg3 {[%emt 0:01:10]} Qg8 {[%emt 0:12:29]} 27. Rae1 {[%emt 0:01:09]} Rd8 {[%emt 0:00:45]} 28. Qc7 {[%emt 0:10:09]} Ba8 {[%emt 0:00:42]} 29. Re6 {[%emt 0:00:37]} Na5 {[%emt 0:02:35]} 30. Qxd8 {[%emt 0:00:21]} 1-0

[Event "24th European Women Club Cup 2019"]
[Site "Ulcinj"]
[Date "2019.11.10"]
[Round "1.16"]
[White "Bukhteeva, Viktoria"]
[Black "Kovanova, Baira"]
[Result "1-0"]
[ECO "E32"]
[WhiteElo "2110"]
[BlackElo "2344"]
[Annotator "NA RC"]
[PlyCount "83"]
[EventDate "2019.11.10"]
[EventType "team-tourn"]
[EventCountry "MNE"]
[SourceTitle "playchess.com"]
[Source "ChessBase"]
[SourceQuality "1"]
[WhiteTeam "Asseco SEE"]
[BlackTeam "Ugra"]
[TimeControl "40/5400+30:1800+30"]

1. d4 {[%emt 0:00:00]} Nf6 {[%emt 0:00:00]} 2. c4 {[%emt 0:00:00]} e6 {[%emt 0:00:00]} 3. Nc3 {[%emt 0:00:22]} Bb4 {[%emt 0:00:00]} 4. Qc2 {[%emt 0:00:26]} O-O {[%emt 0:00:00]} 5. e4 {[%emt 0:00:22]} d6 {[%emt 0:01:32]} 6. e5 {[%emt 0:00:15]} dxe5 {[%emt 0:03:09]} 7. dxe5 {[%emt 0:00:06]} Nfd7 {[%emt 0:01:38]} 8. Nf3 {[%emt 0:01:28]} Nc6 {[%emt 0:06:06]} 9. Bf4 {[%emt 0:05:11]} Nc5 {[%emt 0:22:40]} 10. a3 {[%emt 0:17:46]} Bxc3+ {[%emt 0:01:20]} 11. Qxc3 {[%emt 0:00:06]} a5 {[%emt 0:04:14]} 12. Be3 {[%emt 0:04:02]} b6 {[%emt 0:03:29]} 13. Be2 {[%emt 0:05:52]} f5 {[%emt 0:04:26]} 14. exf6 {[%emt 0:04:43]} Qxf6 {[%emt 0:02:02]} 15. Qc2 {[%emt 0:09:24]} e5 {[%emt 0:01:26]} 16. Bxc5 {[%emt 0:03:35]} bxc5 {[%emt 0:00:09]} 17. Bd3 {[%emt 0:16:24]} g6 {[%emt 0:00:55]} 18. Be4 {[%emt 0:02:30]} Bf5 {[%emt 0:17:18]} 19. O-O {[%emt 0:00:57]} Nd4 {[%emt 0:03:17]} 20. Nxd4 {[%emt 0:02:12]} cxd4 {[%emt 0:00:26]} 21. c5 {[%emt 0:04:51]} Rad8 {[%emt 0:03:02]} 22. Rad1 {[%emt 0:04:33]} Kh8 {[%emt 0:00:37]} 23. Qe2 {[%emt 0:01:27]} a4 {[%emt 0:03:51]} 24. f3 {[%emt 0:01:22]} Rb8 {[%emt 0:02:12]} 25. Rfe1 {[%emt 0:02:02]} Rfe8 {[%emt 0:03:51]} 26. Rd2 {[%emt 0:01:09]} Bd7 {[%emt 0:03:18]} 27. Qf2 {[%emt 0:02:11]} Rb5 {[%emt 0:03:25]} 28. Rc2 {[%emt 0:02:04]} Qe7 {[%emt 0:01:01]} 29. c6 {[%emt 0:00:58]} Bf5 {[%emt 0:03:20]} 30. Qe2 {[%emt 0:01:48]} Rb3 {[%emt 0:01:00]} 31. Qc4 {[%emt 0:01:06]} Qh4 {[%emt 0:02:02]} 32. Rce2 {[%emt 0:02:18]} Rxb2 {[%emt 0:01:42]} 33. Qf7 {[%emt 0:00:05]} Reb8 {[%emt 0:00:31]} 34. g3 {[%emt 0:01:02]} Rxe2 {[%emt 0:00:10]} 35. gxh4 {[%emt 0:00:27]} Rxe1+ {[%emt 0:00:52]} 36. Kf2 {[%emt 0:00:04]} Rxe4 {[%emt 0:01:01]} 37. fxe4 {[%emt 0:00:14]} Bxe4 {[%emt 0:01:12]} 38. Qxc7 {[%emt 0:00:37]} Rb2+ {[%emt 0:01:03]} 39. Kg3 {[%emt 0:02:41]} Rb3+ {[%emt 0:00:25]} 40. Kg4 {[%emt 0:00:00]} Bf3+ {[%emt 0:00:00]} 41. Kg5 {[%emt 0:03:06]} Rc3 {[%emt 0:03:18]} 42. Kh6 {[%emt 0:00:46]} 1-0

[Event "24th European Women Club Cup 2019"]
[Site "Ulcinj"]
[Date "2019.11.10"]
[Round "1.17"]
[White "Rapport, Jovana"]
[Black "Khademalsharieh, Sarasadat"]
[Result "0-1"]
[ECO "D30"]
[WhiteElo "2379"]
[BlackElo "2491"]
[Annotator "ChessBase"]
[PlyCount "66"]
[EventDate "2019.11.10"]
[EventType "team-tourn"]
[EventCountry "MNE"]
[SourceTitle "playchess.com"]
[Source "ChessBase"]
[SourceQuality "1"]
[WhiteTeam "MNE Woman Chess"]
[BlackTeam "Pentole Agnelli"]
[TimeControl "40/5400+30:1800+30"]

1. d4 {[%emt 0:00:00]} d5 {[%emt 0:00:00]} 2. c4 {[%emt 0:00:21]} e6 {[%emt 0:00:00]} 3. Nf3 {[%emt 0:00:09]} a6 {[%emt 0:00:06]} 4. Bg5 {[%emt 0:03:15]} Be7 {[%emt 0:00:42]} 5. Bxe7 {[%emt 0:00:35]} Nxe7 {[%emt 0:00:23]} 6. Nbd2 {[%emt 0:00:54]} Nd7 {[%emt 0:10:12]} 7. g3 {[%emt 0:12:21]} dxc4 {[%emt 0:12:38]} 8. Nxc4 {[%emt 0:01:48]} b5 {[%emt 0:02:06]} 9. Ncd2 {[%emt 0:00:29]} Bb7 {[%emt 0:00:55]} 10. Rc1 {[%emt 0:02:31]} Rc8 {[%emt 0:00:30]} 11. b4 {[%emt 0:04:18]} Nc6 {[%emt 0:07:46]} 12. a3 {[%emt 0:03:40]} Nxd4 {[%emt 0:02:28]} 13. Nxd4 {[%emt 0:01:26]} Bxh1 {[%emt 0:00:04]} 14. f3 {[%emt 0:00:12]} c5 {[%emt 0:00:27]} 15. Ne4 {[%emt 0:05:49]} O-O {[%emt 0:04:04]} 16. bxc5 {[%emt 0:03:17]} Qe7 {[%emt 0:09:34]} 17. Nb3 {[%emt 0:02:32]} Rc6 {[%emt 0:08:22]} 18. Kf2 {[%emt 0:25:33]} f5 {[%emt 0:05:52]} 19. Nd4 {[%emt 0:00:12]} Rc7 {[%emt 0:04:36]} 20. Nd2 {[%emt 0:12:06]} Nxc5 {[%emt 0:04:54]} 21. Kg1 {[%emt 0:00:30]} Rd8 {[%emt 0:04:04]} 22. e3 {[%emt 0:00:50]} e5 {[%emt 0:01:01]} 23. N4b3 {[%emt 0:05:51]} Nxb3 {[%emt 0:01:29]} 24. Qxb3+ {[%emt 0:00:06]} Kh8 {[%emt 0:00:04]} 25. Rxc7 {[%emt 0:07:55]} Qxc7 {[%emt 0:00:04]} 26. Qb2 {[%emt 0:00:04]} Qd6 {[%emt 0:00:40]} 27. Kxh1 {[%emt 0:00:05]} Qxd2 {[%emt 0:00:04]} 28. Qxe5 {[%emt 0:00:24]} Qe1 {[%emt 0:00:15]} 29. Kg1 {[%emt 0:00:24]} Qd2 {[%emt 0:00:41]} 30. Qf4 {[%emt 0:04:29]} Re8 {[%emt 0:00:22]} 31. a4 {[%emt 0:02:12]} b4 {[%emt 0:01:43]} 32. Qd4 {[%emt 0:01:05]} Qxd4 {[%emt 0:01:35]} 33. exd4 {[%emt 0:00:02]} Re1 {[%emt 0:00:10]} 0-1

[Event "24th European Women Club Cup 2019"]
[Site "Ulcinj"]
[Date "2019.11.10"]
[Round "1.18"]
[White "Zimina, Olga"]
[Black "Milovic, Aleksandra"]
[Result "1-0"]
[ECO "A04"]
[WhiteElo "2406"]
[BlackElo "2183"]
[Annotator "NA RC"]
[PlyCount "89"]
[EventDate "2019.11.10"]
[EventType "team-tourn"]
[EventCountry "MNE"]
[SourceTitle "playchess.com"]
[Source "ChessBase"]
[SourceQuality "1"]
[WhiteTeam "Pentole Agnelli"]
[BlackTeam "MNE Woman Chess"]
[TimeControl "40/5400+30:1800+30"]

1. Nf3 {[%emt 0:00:00]} e6 {[%emt 0:01:41]} 2. g3 {[%emt 0:00:02]} c5 {[%emt 0:00:55]} 3. c4 {[%emt 0:00:16]} Nc6 {[%emt 0:00:09]} 4. Bg2 {[%emt 0:00:11]} Nf6 {[%emt 0:02:06]} 5. O-O {[%emt 0:00:21]} Be7 {[%emt 0:00:23]} 6. Nc3 {[%emt 0:00:20]} O-O {[%emt 0:00:22]} 7. d4 {[%emt 0:00:23]} cxd4 {[%emt 0:02:14]} 8. Nxd4 {[%emt 0:00:06]} a6 {[%emt 0:01:45]} 9. b3 {[%emt 0:02:37]} Qc7 {[%emt 0:04:43]} 10. Bb2 {[%emt 0:00:07]} d6 {[%emt 0:03:25]} 11. Rc1 {[%emt 0:01:03]} Nxd4 {[%emt 0:29:07]} 12. Qxd4 {[%emt 0:00:49]} Rb8 {[%emt 0:00:08]} 13. Rfd1 {[%emt 0:07:12]} Qc5 {[%emt 0:08:50]} 14. Qxc5 {[%emt 0:07:17]} dxc5 {[%emt 0:00:05]} 15. Na4 {[%emt 0:10:57]} Nd7 {[%emt 0:02:56]} 16. Ba3 {[%emt 0:01:42]} f5 {[%emt 0:12:49]} 17. Rc2 {[%emt 0:04:00]} Rf7 {[%emt 0:05:07]} 18. e4 {[%emt 0:01:54]} fxe4 {[%emt 0:03:45]} 19. Bxe4 {[%emt 0:10:53]} b6 {[%emt 0:00:09]} 20. Bg2 {[%emt 0:01:31]} Bf6 {[%emt 0:04:10]} 21. Rcd2 {[%emt 0:00:56]} Bd4 {[%emt 0:10:37]} 22. Bb2 {[%emt 0:19:21]} Bxb2 {[%emt 0:00:30]} 23. Nxb2 {[%emt 0:00:04]} Ne5 {[%emt 0:01:55]} 24. f4 {[%emt 0:07:11]} Ng4 {[%emt 0:00:50]} 25. Bh3 {[%emt 0:03:56]} h5 {[%emt 0:00:52]} 26. Rd8+ {[%emt 0:04:43]} Rf8 {[%emt 0:00:03]} 27. Bxg4 {[%emt 0:01:55]} hxg4 {[%emt 0:00:09]} 28. Rxf8+ {[%emt 0:00:16]} Kxf8 {[%emt 0:00:03]} 29. Rd8+ {[%emt 0:00:05]} Ke7 {[%emt 0:00:04]} 30. Rg8 {[%emt 0:00:30]} Kf7 {[%emt 0:00:10]} 31. Rh8 {[%emt 0:00:04]} Ra8 {[%emt 0:01:34]} 32. Na4 {[%emt 0:05:25]} Rb8 {[%emt 0:00:39]} 33. Kf2 {[%emt 0:00:35]} Ke7 {[%emt 0:00:24]} 34. Nxb6 {[%emt 0:01:36]} Rxb6 {[%emt 0:00:06]} 35. Rxc8 {[%emt 0:00:05]} Kd6 {[%emt 0:01:25]} 36. Rg8 {[%emt 0:00:54]} Rb7 {[%emt 0:00:14]} 37. Ra8 {[%emt 0:00:07]} Rb6 {[%emt 0:00:16]} 38. Ra7 {[%emt 0:00:04]} g6 {[%emt 0:00:50]} 39. Rg7 {[%emt 0:00:09]} a5 {[%emt 0:00:12]} 40. Rxg6 {[%emt 0:00:00]} a4 {[%emt 0:00:00]} 41. f5 {[%emt 0:01:48]} Kd7 {[%emt 0:01:00]} 42. Rxe6 {[%emt 0:00:26]} Rb8 {[%emt 0:01:46]} 43. Re3 {[%emt 0:02:09]} a3 {[%emt 0:00:57]} 44. Re5 {[%emt 0:00:33]} Rh8 {[%emt 0:03:05]} 45. Kg2 {[%emt 0:00:17]} 1-0

[Event "24th European Women Club Cup 2019"]
[Site "Ulcinj"]
[Date "2019.11.10"]
[Round "1.24"]
[White "Vardi, Shlomit"]
[Black "Mamedjarova, Zeinab"]
[Result "0-1"]
[ECO "C50"]
[WhiteElo "1935"]
[BlackElo "2280"]
[Annotator "NA"]
[PlyCount "76"]
[EventDate "2019.11.10"]
[EventType "team-tourn"]
[EventCountry "MNE"]
[SourceTitle "playchess.com"]
[Source "ChessBase"]
[SourceQuality "1"]
[WhiteTeam "Rishon Lezion"]
[BlackTeam "Odlar Yurdu"]
[TimeControl "40/5400+30:1800+30"]

1. e4 {[%emt 0:00:00]} e5 {[%emt 0:00:00]} 2. Nf3 {[%emt 0:00:00]} Nc6 {[%emt 0:00:00]} 3. Bc4 {[%emt 0:00:01]} Nf6 {[%emt 0:00:14]} 4. d3 {[%emt 0:00:30]} Bc5 {[%emt 0:00:32]} 5. O-O {[%emt 0:01:39]} O-O {[%emt 0:02:19]} 6. c3 {[%emt 0:01:37]} Bb6 {[%emt 0:00:27]} 7. Re1 {[%emt 0:03:43]} d6 {[%emt 0:01:03]} 8. h3 {[%emt 0:06:15]} Be6 {[%emt 0:02:53]} 9. Nbd2 {[%emt 0:00:39]} a6 {[%emt 0:02:40]} 10. a4 {[%emt 0:18:21]} Qd7 {[%emt 0:05:00]} 11. Bxe6 {[%emt 0:01:28]} fxe6 {[%emt 0:01:03]} 12. Nc4 {[%emt 0:01:21]} Ba7 {[%emt 0:00:17]} 13. Be3 {[%emt 0:03:25]} Kh8 {[%emt 0:07:58]} 14. Bxa7 {[%emt 0:19:33]} Rxa7 {[%emt 0:00:13]} 15. d4 {[%emt 0:00:51]} exd4 {[%emt 0:01:27]} 16. cxd4 {[%emt 0:00:56]} Raa8 {[%emt 0:01:50]} 17. a5 {[%emt 0:05:01]} Rae8 {[%emt 0:12:56]} 18. Ra3 {[%emt 0:06:12]} Qe7 {[%emt 0:15:45]} 19. Qb3 {[%emt 0:07:34]} Rb8 {[%emt 0:02:44]} 20. d5 {[%emt 0:05:17]} Na7 {[%emt 0:00:28]} 21. Qd3 {[%emt 0:01:41]} Nb5 {[%emt 0:02:11]} 22. Raa1 {[%emt 0:00:11]} Nh5 {[%emt 0:00:53]} 23. dxe6 {[%emt 0:03:52]} Nf4 {[%emt 0:00:27]} 24. Qf1 {[%emt 0:01:20]} Nxh3+ {[%emt 0:00:41]} 25. Kh2 {[%emt 0:02:26]} Rxf3 {[%emt 0:07:49]} 26. gxf3 {[%emt 0:01:34]} Nf4 {[%emt 0:00:04]} 27. Qh1 {[%emt 0:02:28]} Nd4 {[%emt 0:04:06]} 28. Ne3 {[%emt 0:01:04]} Rf8 {[%emt 0:05:09]} 29. Kg1 {[%emt 0:01:46]} Qg5+ {[%emt 0:00:31]} 30. Kf1 {[%emt 0:00:18]} Qb5+ {[%emt 0:01:06]} 31. Kg1 {[%emt 0:00:21]} Nde2+ {[%emt 0:03:34]} 32. Rxe2 {[%emt 0:00:47]} Nxe2+ {[%emt 0:00:11]} 33. Kg2 {[%emt 0:00:06]} Nf4+ {[%emt 0:00:57]} 34. Kg1 {[%emt 0:00:15]} Nxe6 {[%emt 0:01:09]} 35. Nf5 {[%emt 0:02:19]} g6 {[%emt 0:02:21]} 36. Qh6 {[%emt 0:01:01]} gxf5 37. Qxe6 {[%emt 0:00:53]} fxe4 {[%emt 0:00:16]} 38. Qxe4 {[%emt 0:00:13]} Rg8+ {[%emt 0:00:09]} 0-1

[Event "24th European Women Club Cup 2019"]
[Site "Ulcinj"]
[Date "2019.11.10"]
[Round "1.25"]
[White "Len, Irina"]
[Black "Shuvalova, Polina"]
[Result "0-1"]
[ECO "D37"]
[WhiteElo "2036"]
[BlackElo "2434"]
[Annotator "NA RC"]
[PlyCount "90"]
[EventDate "2019.11.10"]
[EventType "team-tourn"]
[EventCountry "MNE"]
[SourceTitle "playchess.com"]
[Source "ChessBase"]
[SourceQuality "1"]
[WhiteTeam "Hertzeliya"]
[BlackTeam "Novy Bor"]
[TimeControl "40/5400+30:1800+30"]

1. d4 {[%emt 0:00:00]} Nf6 {[%emt 0:00:00]} 2. c4 {[%emt 0:00:01]} e6 {[%emt 0:00:00]} 3. Nf3 {[%emt 0:00:05]} d5 {[%emt 0:00:00]} 4. Nc3 {[%emt 0:00:21]} a6 {[%emt 0:03:46]} 5. cxd5 {[%emt 0:01:20]} exd5 {[%emt 0:00:09]} 6. Bg5 {[%emt 0:00:10]} Be7 {[%emt 0:01:41]} 7. Qb3 {[%emt 0:03:28]} c6 {[%emt 0:01:41]} 8. e3 {[%emt 0:00:27]} O-O {[%emt 0:02:36]} 9. Bd3 {[%emt 0:01:56]} Nbd7 {[%emt 0:01:04]} 10. O-O {[%emt 0:00:29]} h6 {[%emt 0:04:22]} 11. Bh4 {[%emt 0:03:07]} Ne4 {[%emt 0:07:03]} 12. Bxe7 {[%emt 0:05:57]} Qxe7 {[%emt 0:00:04]} 13. Qc2 {[%emt 0:06:01]} Re8 {[%emt 0:03:55]} 14. Rab1 {[%emt 0:00:49]} Ndf6 {[%emt 0:05:51]} 15. Ne5 {[%emt 0:05:34]} Bf5 {[%emt 0:10:46]} 16. Na4 {[%emt 0:04:18]} g6 {[%emt 0:05:59]} 17. b4 {[%emt 0:08:45]} Nd6 {[%emt 0:03:04]} 18. Bxf5 {[%emt 0:04:18]} Nxf5 {[%emt 0:01:02]} 19. Nc5 {[%emt 0:00:11]} Nd6 {[%emt 0:02:48]} 20. Rb3 {[%emt 0:01:55]} Kg7 {[%emt 0:02:01]} 21. a4 {[%emt 0:04:14]} h5 {[%emt 0:00:39]} 22. f3 {[%emt 0:00:15]} h4 {[%emt 0:06:19]} 23. Qf2 {[%emt 0:10:29]} Rh8 {[%emt 0:01:49]} 24. Re1 {[%emt 0:01:22]} Qc7 {[%emt 0:04:13]} 25. a5 {[%emt 0:02:20]} Rae8 {[%emt 0:01:11]} 26. e4 {[%emt 0:02:53]} h3 {[%emt 0:02:59]} 27. g3 {[%emt 0:04:32]} Nb5 {[%emt 0:03:29]} 28. Ned3 {[%emt 0:05:28]} dxe4 {[%emt 0:00:43]} 29. fxe4 {[%emt 0:00:14]} Rd8 {[%emt 0:06:34]} 30. Nf4 {[%emt 0:04:40]} Nxd4 {[%emt 0:06:10]} 31. Rd3 {[%emt 0:01:38]} Qe5 {[%emt 0:01:16]} 32. Nxb7 {[%emt 0:03:03]} Ng4 {[%emt 0:02:03]} 33. Qa2 {[%emt 0:04:23]} Rb8 {[%emt 0:00:48]} 34. Qc4 {[%emt 0:02:42]} g5 {[%emt 0:02:17]} 35. Rxd4 {[%emt 0:00:20]} gxf4 {[%emt 0:04:30]} 36. Rd7 {[%emt 0:01:15]} Rhf8 {[%emt 0:01:55]} 37. Nd6 {[%emt 0:01:16]} Qb2 {[%emt 0:01:25]} 38. Nf5+ {[%emt 0:01:30]} Kg8 {[%emt 0:00:20]} 39. Ne7+ {[%emt 0:00:40]} Kh7 {[%emt 0:00:22]} 40. Qe2 {[%emt 0:00:00]} Qxe2 {[%emt 0:00:00]} 41. Rxe2 {[%emt 0:01:34]} Rxb4 {[%emt 0:05:29]} 42. Rd1 {[%emt 0:02:27]} f3 {[%emt 0:03:05]} 43. Red2 {[%emt 0:05:01]} Rxe4 {[%emt 0:05:00]} 44. Nxc6 {[%emt 0:03:45]} Rc8 {[%emt 0:03:19]} 45. Nd8 {[%emt 0:00:44]} Re2 {[%emt 0:03:07]} 0-1